Cogmind - Beta 9.6 @@@ ROGUE MODE // 2020.08.17 @ 16:10:24 Player: Exp. Geo Core Result: Destroyed by Y-54 Guardian with Gatling Laser Performance ------------- Evolutions (3) 1500 Regions Visited (6) 1200 Robots Destroyed (63) 315 Value Destroyed (1744) 1744 Prototype IDs (1) 20 Alien Tech Used (0) 0 Bonus (1066) 1066 TOTAL SCORE: 5845 Bonus ------- High Alert Combat Kills 366 Entered Garrisons 200 Used RIF Installer 500 Cogmind --------- Core Integrity 0/700 Matter 270/300 Energy 99/100 System Corruption 10% Temperature Cool (18) Movement Core (50) Location -7/Factory Parts ------- > --- POWER (1) -------- (None) > --- PROPULSION (2) --- (None) > --- UTILITY (8) ------ (None) > --- WEAPON (2) ------- (None) > --- INVENTORY (4) ---- Micro Nuclear Core Improved Medium Armor Plating Improved Medium Armor Plating Relay Coupler [NC] (22) Peak State ------------ > --- POWER ------------ (None) > --- PROPULSION ------- Armored Wheel Armored Wheel > --- UTILITY ---------- Improved Heat Sink Large Storage Unit Advanced Visual Processing Unit Improved Sensor Array Improved Light Armor Plating Relay Coupler [Grunt] Relay Coupler [Sentry] > --- WEAPON ----------- Gauss Rifle Flak Gun > --- INVENTORY -------- Light Ion Engine Wheel Armored Wheel Armored Wheel Armored Wheel Medium Storage Unit Relay Coupler [NC] Relay Coupler [Grunt] Particle Gun [Rating: 32] Favorites ----------- Power Improved Ion Engine Engine Improved Ion Engine Power Core Nuclear Core Propulsion Wheel Wheel Wheel Utility Relay Coupler [Grunt] Device Improved Heat Sink Storage Large Storage Unit Processor Visual Processing Unit Hackware Relay Coupler [Grunt] Protection Improved Light Armor Plating Weapon Light Assault Rifle Energy Gun Small Laser Ballistic Gun Light Assault Rifle Build | -11 -10 -9 -9 -9 -9 -7 ------- Run | Scr Mat Mat Sto Gar Rec Fac Slots Evolved 6 | . . 2 . . . 4 Power . | . . . . . . . Propulsion . | . . . . . . . Utility 6 | . . 2 . . . 4 Weapon . | . . . . . . . Parts Attached 62 | 8 . 9 3 20 2 20 Power 8 | 1 . 1 1 3 . 2 Engine 6 | 1 . 1 1 3 . . Core 2 | . . . . . . 2 Reactor . | . . . . . . . Propulsion 14 | 2 . 3 1 5 . 3 Treads . | . . . . . . . Leg . | . . . . . . . Wheel 14 | 2 . 3 1 5 . 3 Hover . | . . . . . . . Flight . | . . . . . . . Utility 17 | 3 . 4 . 4 . 6 Device 7 | 1 . 2 . . . 4 Storage 2 | 1 . . . 1 . . Processor 3 | 1 . 1 . . . 1 Hackware 3 | . . . . 3 . . Protection 2 | . . 1 . . . 1 Artifact . | . . . . . . . Weapon 23 | 2 . 1 1 8 2 9 Energy Gun 13 | . . 1 . 4 2 6 Energy Cannon . | . . . . . . . Ballistic Gun 10 | 2 . . 1 4 . 3 Ballistic Cannon . | . . . . . . . Launcher . | . . . . . . . Special Weapon . | . . . . . . . Impact Weapon . | . . . . . . . Slashing Weapon . | . . . . . . . Piercing Weapon . | . . . . . . . Special Melee Weapon . | . . . . . . . Unidentified Prototypes 1 | . . . . . . 1 Parts Lost 44 | . . 5 2 13 . 24 Power 4 | . . . . 2 . 2 Propulsion 13 | . . 3 1 4 . 5 Utility 12 | . . 2 . 1 . 9 Weapon 15 | . . . 1 6 . 8 Highest Loss Streak 19 | . . 3 2 4 . 19 Average Slot Usage (%) 76 | . 100 77 95 81 99 58 Engine 7 | . 14 11 11 9 11 1 Wheel 17 | . 28 19 19 20 22 10 Device 4 | . 14 9 22 2 . 4 Storage 3 | . . . . 2 11 4 Processor 7 | . 14 13 11 8 . 4 Hackware 13 | . . . . 15 33 13 Protection 1 | . . 1 11 1 . 2 Energy Gun 8 | . . 6 4 10 18 5 Ballistic Gun 10 | . 28 15 15 10 2 6 Naked Turns 48 | . . . . . . 48 Heaviest Build 30 | 11 8 10 16 25 29 30 Greatest Support 24 | 20 20 20 20 24 24 24 Greatest Overweight (x) 3 | . . . 1 3 1 2 Average Overweight (x) . | . . . . . . . Largest Inventory Capacity 10 | 6 4 4 4 10 10 10 Average Capacity 6 | 5 4 4 4 5 10 8 Most Carried 10 | 4 4 4 4 9 9 10 Average Carried 5 | . 4 3 3 4 8 7 Final Capacity 10 | 4 4 4 4 10 10 4 Final Carried 9 | 4 4 4 4 8 9 4 Class Distribution -------------------- 77% | Scavenger-Mutant 22% | Mutant Dominant Class ---------------- Mutant | -10/Materials Scavenger-Mutant | -9/Materials Scavenger-Mutant | -9/Storage Scavenger-Mutant | -9/Garrison Scavenger-Mutant | -9/Recycling Scavenger-Mutant | -7/Factory Resources | -11 -10 -9 -9 -9 -9 -7 ----------- Run | Scr Mat Mat Sto Gar Rec Fac Matter Collected 1358 | 344 4 137 29 401 36 407 Remotely . | . . . . . . . Salvage Created 2355 | 198 29 401 108 944 . 675 Parts 151 | 13 3 31 10 64 . 30 Haulers Intercepted . | . . . . . . . Recyclers Shooed 2 | . . 2 . . . . Parts Field Recycled . | . . . . . . . Retrieved Matter . | . . . . . . . Parts Self-Destructed . | . . . . . . . Prevented . | . . . . . . . Kills | -11 -10 -9 -9 -9 -9 -7 ------- Run | Scr Mat Mat Sto Gar Rec Fac Combat Hostiles Destroyed 48 | . . 11 2 23 . 12 Guns 47 | . . 11 2 23 . 11 AOE 1 | . . . . . . 1 Classes Destroyed 9 | 3 1 4 . . . 1 Worker 5 | 2 . 2 . . . 1 Tunneler 4 | 4 . . . . . . Recycler 2 | 1 . 1 . . . . Operator 1 | . . . . . . 1 Watcher 3 | . 1 1 . . . 1 Swarmer 20 | . . 8 . 12 . . Grunt 20 | . . 1 . 10 . 9 Brawler 1 | . . 1 . . . . Sentry 7 | . . 1 2 1 . 3 Best Kill Streak 4 | 4 1 4 2 4 . 3 Combat Bots Only 4 | . . 4 2 4 . 3 Max Kills in Single Turn 2 | 1 1 1 1 2 . 1 Gunslinging 1 | . . . . 1 . . Exploded 1 | . . . . . . 1 Melee . | . . . . . . . Uniques/NPCs Destroyed . | . . . . . . . Combat | -11 -10 -9 -9 -9 -9 -7 -------- Run | Scr Mat Mat Sto Gar Rec Fac Damage Taken 3781 | . . 502 89 1163 . 2027 Core 1098 | . . 85 30 276 . 707 Absorbed by Shields . | . . . . . . . Core Remaining (%) 67 | 100 100 . . . 2 . Volleys Fired 273 | 32 2 48 5 128 . 58 Largest 2 | 2 2 2 2 2 . 2 Hottest 103 | 40 40 60 60 80 . 103 Shots Fired 473 | 64 4 93 8 194 1 109 Gun 473 | 64 4 93 8 194 1 109 Cannon . | . . . . . . . Launcher . | . . . . . . . Special . | . . . . . . . Kinetic 298 | 64 4 71 7 77 . 75 Thermal 163 | . . 22 1 117 . 23 Explosive . | . . . . . . . Electromagnetic 12 | . . . . . 1 11 Robot Hit Streak 21 | 7 1 5 7 21 . 13 Robot Miss Streak 8 | 2 1 3 . 7 . 8 Penetration Max . | . . . . . . . Secondary Targets 9 | . . 3 . 6 . . Max Gunslinging Chain 1 | . . 1 . 1 . . Shots Hit Robots 310 | 38 1 47 7 128 . 89 Core Hits 161 | 14 2 26 5 53 . 61 Critical Hits . | . . . . . . . Critical Kills . | . . . . . . . Critical Parts Destroyed . | . . . . . . . Melee Attacks . | . . . . . . . Impact . | . . . . . . . Slashing . | . . . . . . . Piercing . | . . . . . . . Sneak Attacks . | . . . . . . . Combat Hostiles . | . . . . . . . Follow-up Attacks . | . . . . . . . Damage Inflicted 3903 | 281 15 405 73 1569 . 1560 Guns 3569 | 281 15 405 73 1569 . 1226 Cannons . | . . . . . . . Explosions 334 | . . . . . . 334 Melee . | . . . . . . . Ramming . | . . . . . . . Kinetic 1992 | 281 15 277 63 513 . 843 Thermal 1742 | . . 128 10 1056 . 548 Explosive . | . . . . . . . Electromagnetic 169 | . . . . . . 169 Impact . | . . . . . . . Slashing . | . . . . . . . Piercing . | . . . . . . . Highest Corruption 10 | . . 5 5 5 5 10 Average Corruption 5 | . . 3 5 5 5 9 Corruption Purged . | . . . . . . . Effects 58 | . . 2 3 34 6 13 Message Errors 13 | . . . 1 9 2 1 Matter Fused 13 | . . 2 1 7 2 1 Heat Flow Errors 5 | . . . . 3 . 2 Energy Discharges 4 | . . . . 1 1 2 Parts Rejected 2 | . . . . 1 . 1 Data Loss (minor) 3 | . . . . 3 . . Data Loss (major) 2 | . . . 1 1 . . Misfires 1 | . . . . . 1 . Targeting Errors 13 | . . . . 9 . 4 Weapon Failures 2 | . . . . . . 2 Overload Shots . | . . . . . . . Overflow Damage 145 | . . . . . . 145 Projectiles . | . . . . . . . Explosions 145 | . . . . . . 145 Melee . | . . . . . . . Knockbacks . | . . . . . . . Impact . | . . . . . . . Kinetic . | . . . . . . . Secondary . | . . . . . . . Self-Inflicted Damage 111 | . . . . . . 111 Shots 1 | . . . . . . 1 Rammed . | . . . . . . . Targets Rammed . | . . . . . . . Kicked . | . . . . . . . Crushed . | . . . . . . . Highest Temperature 254 | . . 37 9 254 . 216 Average Temperature 62 | . . 12 9 78 . 59 Received Heat Transfer 936 | . . 39 27 204 . 666 Effects 3 | . . . . 3 . . Interference 3 | . . . . 3 . . Siege Activations . | . . . . . . . Robots Corrupted . | . . . . . . . Combat Hostiles . | . . . . . . . Parts Fried 2 | . . . . . . 2 Impact Corruptions . | . . . . . . . Robots Melted 1 | . . . . 1 . . Combat Hostiles . | . . . . . . . Parts Melted 1 | . . . . 1 . . Heat Transferred 3177 | . . 300 25 2401 . 451 Parts Sabotaged . | . . . . . . . Parts Stolen . | . . . . . . . Parts Stripped . | . . . . . . . Power Chain Reactions . | . . . . . . . Missiles Intercepted . | . . . . . . . Alert | -11 -10 -9 -9 -9 -9 -7 ------- Run | Scr Mat Mat Sto Gar Rec Fac Peak Influence 1176 | 35 44 285 205 595 293 1176 Average Influence 536 | 13 30 163 169 463 288 1058 Maximum Alert Level 4 | . . 1 1 2 1 4 Low Security (%) 17 | 100 100 58 60 2 . . Level 1 26 | . . 41 39 27 100 . Level 2 28 | . . . . 70 . . Level 3 23 | . . . . . . 82 Level 4 4 | . . . . . . 17 Level 5 . | . . . . . . . High Security . | . . . . . . . Max Security . | . . . . . . . Squads Dispatched 7 | . . 1 . . . 6 Investigation 1 | . . . . . . 1 Extermination . | . . . . . . . Reinforcement 2 | . . 1 . . . 1 Assault . | . . . . . . . Garrison 4 | . . . . . . 4 Intercept . | . . . . . . . Construction Impeded . | . . . . . . . Haulers Reinforced . | . . . . . . . Stealth | -11 -10 -9 -9 -9 -9 -7 --------- Run | Scr Mat Mat Sto Gar Rec Fac Distress Signals 4 | . . 3 . . . 1 Communications Jammed . | . . . . . . . Distress Signals . | . . . . . . . Times Spotted 88 | . 1 20 2 25 10 30 Peak Tracking Total 7 | . 1 5 1 4 7 6 Tactical Retreats 7 | . . 3 . . . 4 Traps | -11 -10 -9 -9 -9 -9 -7 ------- Run | Scr Mat Mat Sto Gar Rec Fac Traps Triggered 8 | . . 1 . 6 . 1 Indirectly . | . . . . . . . Trap Hack Attempts . | . . . . . . . Triggered . | . . . . . . . Disarmed . | . . . . . . . Reprogrammed . | . . . . . . . Reused . | . . . . . . . Traps Extracted . | . . . . . . . Installed . | . . . . . . . Triggered . | . . . . . . . Machines | -11 -10 -9 -9 -9 -9 -7 ---------- Run | Scr Mat Mat Sto Gar Rec Fac Machines Disabled 5 | . . . . 1 . 4 Max in Single Turn 4 | . . . . 1 . 4 Garrison Relay 1 | . . . . 1 . . Machines Sabotaged . | . . . . . . . Garrisons Compromised . | . . . . . . . Overloaded Fab Kills . | . . . . . . . Fab Network Shutdowns . | . . . . . . . Hacking | -11 -10 -9 -9 -9 -9 -7 --------- Run | Scr Mat Mat Sto Gar Rec Fac Machines Accessed 7 | . 1 1 1 . 3 1 Terminals 6 | . 1 1 . . 3 1 Fabricators . | . . . . . . . Repair Stations . | . . . . . . . Recycling Units . | . . . . . . . Scanalyzers . | . . . . . . . Garrison Access 1 | . . . 1 . . . Total Hacks 18 | . 2 3 2 . 9 2 Successful 9 | . . 1 1 . 6 1 Failed 9 | . 2 2 1 . 3 1 Catastrophic 1 | . . 1 . . . . Database Lockouts . | . . . . . . . Manual 15 | . 2 3 . . 8 2 Terminals 16 | . 2 3 . . 9 2 Fabricators . | . . . . . . . Repair Stations . | . . . . . . . Recycling Units . | . . . . . . . Scanalyzers . | . . . . . . . Garrison Access 2 | . . . 2 . . . Terminal Hacks 2 | . . . . . 2 . Level Access Points 1 | . . . . . 1 . Terminal Index 1 | . . . . . 1 . Fabricator Hacks . | . . . . . . . Repair Station Hacks . | . . . . . . . Recycling Unit Hacks . | . . . . . . . Scanalyzer . | . . . . . . . Garrison Access Hacks 1 | . . . 1 . . . Unlock Access 1 | . . . 1 . . . Unauthorized Hacks 6 | . . 1 . . 4 1 Terminals 6 | . . 1 . . 4 1 Botnet 5 | . . 1 . . 3 1 Operators 1 | . . . . . 1 . Fabricators . | . . . . . . . Repair Stations . | . . . . . . . Recycling Units . | . . . . . . . Scanalyzers . | . . . . . . . Garrison Access . | . . . . . . . Data Cores Recovered . | . . . . . . . Used . | . . . . . . . Hacking Detections 6 | . 1 1 . . 3 1 Full Trace Events 1 | . . 1 . . . . Feedback Events . | . . . . . . . Feedback Blocked . | . . . . . . . Robot Schematics Acquired . | . . . . . . . Robots Built . | . . . . . . . Matter . | . . . . . . . Time . | . . . . . . . Total Robot Build Rating . | . . . . . . . Part Schematics Acquired . | . . . . . . . Parts Built . | . . . . . . . Matter . | . . . . . . . Time . | . . . . . . . Total Part Build Rating . | . . . . . . . Parts Repaired . | . . . . . . . Time . | . . . . . . . Parts Recycled . | . . . . . . . Recycled Matter . | . . . . . . . Retrieved Matter . | . . . . . . . Retrieved Components . | . . . . . . . Parts Scanalyzed . | . . . . . . . Part Schematics Acquired . | . . . . . . . Parts Damaged . | . . . . . . . Bothacking | -11 -10 -9 -9 -9 -9 -7 ------------ Run | Scr Mat Mat Sto Gar Rec Fac Used RIF Installer 1 | . . . . 1 . . Robots Hacked . | . . . . . . . Non-combat . | . . . . . . . Combat . | . . . . . . . Robot Hacks Applied . | . . . . . . . Relay Couplers Released 5 | . . . . 5 . . Machine Destruction 5 | . . . . 5 . . Attached 3 | . . . . 3 . . Robots Rewired . | . . . . . . . Allies Hacked . | . . . . . . . Hacks Repelled . | . . . . . . . Allies | -11 -10 -9 -9 -9 -9 -7 -------- Run | Scr Mat Mat Sto Gar Rec Fac Total Allies . | . . . . . . . Largest Group . | . . . . . . . Highest-Rated Group . | . . . . . . . Highest-Rated Ally . | . . . . . . . Total Orders . | . . . . . . . Ally Attacks . | . . . . . . . Total Damage . | . . . . . . . Kills . | . . . . . . . Allies Corrupted . | . . . . . . . Allies Melted . | . . . . . . . Intel | -11 -10 -9 -9 -9 -9 -7 ------- Run | Scr Mat Mat Sto Gar Rec Fac Robot Analysis Total . | . . . . . . . Derelict Logs Recovered . | . . . . . . . Drone Launches . | . . . . . . . Drone Recoveries . | . . . . . . . Exploration | -11 -10 -9 -9 -9 -9 -7 ------------- Run | Scr Mat Mat Sto Gar Rec Fac Turns Passed 2510 | 138 63 306 51 1014 233 705 Spaces Moved 1737 | 49 72 197 37 707 221 454 Core 158 | 2 . . . 8 . 148 Treads . | . . . . . . . Legs . | . . . . . . . Wheels 1579 | 47 72 197 37 699 221 306 Hover . | . . . . . . . Flight . | . . . . . . . Fastest Speed 50 | 50 80 80 80 50 90 50 Average Speed 86 | 78 80 80 81 84 99 89 Slowest Speed 200 | 80 80 80 90 200 100 150 Overloaded Moves . | . . . . . . . Propulsion Burnouts . | . . . . . . . Robots Hopped . | . . . . . . . Cave-ins Triggered . | . . . . . . . Exploration Rate (%) 30 | 4 20 29 11 74 59 13 Regions Visited 6 Branch Regions 2 Pre-discovered Areas . | . . . . . . . Known Exits Taken 2 | . . . 1 . 1 . Unknown Exits Taken 3 | 1 1 1 . . . . Scrap Searched . | . . . . . . . Spaces Dug . | . . . . . . . Terrain Destroyed 53 | . . . . . . 53 Melee . | . . . . . . . Projectile . | . . . . . . . AOE 53 | . . . . . . 53 Actions | -11 -10 -9 -9 -9 -9 -7 --------- Run | Scr Mat Mat Sto Gar Rec Fac Total 2284 | 93 73 264 50 932 233 639 Wait 117 | . . 7 3 16 8 83 Move 1732 | 48 71 196 37 706 220 454 Hop . | . . . . . . . Pick Up 30 | 4 . 2 1 13 1 9 Fast Attach 40 | 8 . 6 1 11 2 12 Attach 17 | . . 2 1 7 . 7 Detach 2 | . . . . . . 2 Swap 5 | . . 1 1 2 . 1 Drop 18 | 1 . 2 1 7 2 5 Fire 273 | 32 2 48 5 128 . 58 Melee . | . . . . . . . Ram . | . . . . . . . Kick . | . . . . . . . Crush . | . . . . . . . Escape Stasis 50 | . . . . 42 . 8 Rewire . | . . . . . . . Trap . | . . . . . . . Miscellaneous . | . . . . . . . Route ------- -11/Scrapyard -10/Materials -9/Materials (discovered 2 exits: [*Min] / *Sto) -9/Storage -9/Garrison (discovered 3 exits: *Rec x3) -9/Recycling -7/Factory History --------- Turn | Location | Event 23 | -11/Scrapyard | Discovered new exit (range 15) 139 | -11/Scrapyard | Entered Materials 192 | -10/Materials | Discovered new exit (range 13) 202 | -10/Materials | Entered another Materials area 202 | -9/Materials | Evolved 2 slots: Utility x2 321 | -9/Materials | Build established: Mutant 351 | -9/Materials | Lost 3 parts (2n1u) 475 | -9/Materials | Discovered new exit (range 11) 499 | -9/Materials | Discovered new exit (range 13) 508 | -9/Materials | Entered Storage 559 | -9/Storage | Identified exit to Garrison 559 | -9/Storage | Entered Garrison 566 | -9/Garrison | Triggered checkpoint 628 | -9/Garrison | Build established: Scavenger-Mutant 646 | -9/Garrison | Triggered checkpoint 646 | -9/Garrison | Garrison Relay disabled 692 | -9/Garrison | Triggered checkpoint 725 | -9/Garrison | Core integrity fell below 50% 761 | -9/Garrison | Lost 4 parts (1n1u2w) 782 | -9/Garrison | Discovered new exit (range 11) 822 | -9/Garrison | Triggered checkpoint 850 | -9/Garrison | Triggered checkpoint 933 | -9/Garrison | Discovered new exit (range 16) 963 | -9/Garrison | Lost 3 parts (1p2w) 992 | -9/Garrison | Installed Relay Interface Framework 1010 | -9/Garrison | Triggered checkpoint 1022 | -9/Garrison | Core integrity fell below 20% 1194 | -9/Garrison | Triggered checkpoint 1235 | -9/Garrison | Lost 4 parts (1p2n1w) 1428 | -9/Garrison | Triggered checkpoint 1463 | -9/Garrison | Discovered new exit (range 15) 1573 | -9/Garrison | Entered Recycling 1591 | -9/Recycling | Identified exit to Factory 1640 | -9/Recycling | Spotter reported a threat 1640 | -9/Recycling | Spotter reported a threat 1656 | -9/Recycling | Spotter reported a threat 1656 | -9/Recycling | Spotter reported a threat 1656 | -9/Recycling | Spotter reported a threat 1680 | -9/Recycling | Spotter reported a threat 1687 | -9/Recycling | Spotter reported a threat 1694 | -9/Recycling | Spotter reported a threat 1700 | -9/Recycling | Spotter reported a threat 1709 | -9/Recycling | Spotter reported a threat 1709 | -9/Recycling | Spotter reported a threat 1771 | -9/Recycling | Spotter reported a threat 1792 | -9/Recycling | Spotter reported a threat 1806 | -9/Recycling | Entered Factory 1806 | -7/Factory | Evolved 4 slots: Utility x4 1976 | -7/Factory | Garrison activated, responded to threat 2039 | -7/Factory | Lost 4 parts (1p1n1u1w) 2271 | -7/Factory | Garrison activated, responded to threat 2350 | -7/Factory | Core integrity fell below 50% 2350 | -7/Factory | System corruption reached 10% 2405 | -7/Factory | Core integrity fell below 20% 2454 | -7/Factory | Lost 19 parts (1p4n8u6w) 2511 | -7/Factory | Destroyed by Y-54 Guardian with Gatling Laser Last Messages --------------- 02422_ K-01 Serf collects debris. 02423_ Particle Gun destroyed. 02425_ Acquired 53 matter. 02426_ K-01 Serf collects debris. 02429_ System corrupted: Heat flow error (+182). 02429_ K-01 Serf collects debris. 02432_ U-05 Engineer lays Concrete. 02433_ U-05 Engineer builds a Wall. 02434_ U-05 Engineer lays Concrete. 02443_ O-16 Technician: "IFF HANDSHAKE FAILED. SECURING TERMINAL." 02457_ Acquired Recalibrator. 02458_ System corrupted: Heat flow error (+250). 02463_ Acquired Mic. Nuclear Core. 02467_ K-01 Serf cleans the Pressure Siphon. 02472_ Flak Gun destroyed. 02490_ System corrupted: Energy discharge (-31). 02491_ Dropped Recalibrator. 02494_ Acquired Imp. Medium Armor Plating. 02505_ /FA5 |XRJ/:32F|1 I8YM>#QSFGTF, 02509_ Acquired 42 matter. Map ----- +----------------------------------------------------+ | ##???????????? #???????????????????????? | | """" #???????????# #???????????????????????? | | """" #???????????# #???????????????????????? | | """" +???????????# #???????????????????????? | | #???????????# +???????????????????????? | | #???????????# #???????????????????????? | | #### #???????????# #???????????????????????? | | #### #????######## #???????????????????????? | | # #????# ###########??##?????????? | | # #????# ## ?? #?????????? | | # #????# ## """" """" #?????????? | | # ###### ## """" """" #?????????? | | + ## """" """" ##########? | | ################+### ## """" """" # = # | | ## # ## """" """" # # | | #" ! ; ## """" """" # "" # | | " / # ## # "" # | | " # / # """ T" # | | " # ^ ^##= = ! # """ "" # | | " # ## # """ "" ? | | " # ## ![ #?? ??? | | ##############+#### ####+#######+######+##### | | #"" # k !%* | | # # | | ##### ##### | | #???##????# @ !* % | | #?????????# Y k =%= == | | #?????????###########+######+#############+### | | #????????????# #?? ????????? ?# | | #########????#" # " ??????"" ?# | | #????#T !# "G" #????""" # | | ^ ######" # " " #??? """ # | | + # """ #??# # | | """ ##### """ # """ #??? """ # | | """" #???# """"" # """ #??# """ # | | """" #???# """"" # !#????""" # | | "" #########################???? # | | """ "" # #????????????????????####### | | """" F" # """ ! #??????????????????????????# | | """" "" # """ #??????????????????????????# | | !+ """ #??????????????????????????# | | # #??????????????????????????### | | #### #* !!! #????????????????????????????? | | ???# # !!! #????????????????????????????? | | ???######### ! #????????????????????????????? | | ???????????# #????????????????????????????? | | ???????????##########????????????????????????????? | | ?????????????????????????????????????????????????? | | ?????????????????????????????????????????????????? | | ?????????????????????????????????????????????????? | +----------------------------------------------------+ Best States ------------- Heat Dissipation 48 Energy Generation 14 Energy Capacity 265 Matter Stores 300 Matter Capacity 300 Sight Range 20 Robot Scan Range 13 Terrain Scan Range 16 Terrain Scan Density 60 Armor Coverage 150 Evasion (%) 50 Item Schematics ----------------- None Robot Schematics ------------------ None Fabricated ------------ Nothing Alien Tech Used ----------------- None Achievements -------------- None Challenges ------------ None Game ------ Seed UltimateVisualStabilizer Manual? 0 Play Time 00:32:50 Cumulative 26.2 hours Start 2020.08.17 @ 15:00:27 End 2020.08.17 @ 16:10:24 Sessions 1 Manual Loads 0 Difficulty Rogue Special Mode None Game No. 34 Rogue 34 Adventurer 0 Explorer 0 Win Type - Total 1 Types 1/0/0/0/0/0/0 Lore% 32 Gallery% 39 Achievement% 35 Wizard Run 0 Options --------- ASCII 0 Keyboard 0 Movement Mouse Keybinds 0 Fullscreen 1 Font 18/Smallcaps Map View 76x50 Tactical HUD 1 Map Filters NONE Filters NONE Steam 1 RUN: c0234fce-9ad1-49d9-a2c9-144386c6db6f